[Event "SS Manhem Chess Week 2019 Goteborg Open"]
[Site "Molnlycke kulturhus, Biblioteksgatan 2, Molnlycke, Sweden"]
[Date "2019.08.16"]
[Round "1.12"]
[White "Westergren, Bertil"]
[Black "Rydstrom, Tom"]
[Result "0-1"]
[TimeControl "15 minutes + 5 seconds per move from move one (Round 1 - 4) / 90 minutes + 30 seconds per move from move one (Round 5 - 8)"]
[BlackTitle "FM"]
[WhiteFideId "1712012"]
[BlackFideId "1714830"]
[WhiteElo "1836"]
[BlackElo "2314"]

1. d4 {[%clk 00:15:06]} {[%emt 00:00:03]} b6 {[%clk 00:15:06]} {[%emt
00:00:06]} 2. c4 {[%clk 00:15:08]} {[%emt 00:00:03]} Bb7 {[%clk 00:15:10]} 3.
Nc3 {[%clk 00:15:10]} {[%emt 00:00:02]} e6 {[%clk 00:15:14]} {[%emt 00:00:02]}
4. e3 {[%clk 00:15:00]} {[%emt 00:00:15]} f5 {[%clk 00:15:03]} {[%emt
00:00:16]} 5. Bd3 {[%clk 00:14:54]} {[%emt 00:00:10]} Nf6 {[%clk 00:15:06]}
{[%emt 00:00:02]} 6. Nge2 {[%clk 00:14:56]} {[%emt 00:00:03]} g6 {[%clk
00:14:48]} {[%emt 00:00:23]} 7. f3 {[%clk 00:14:55]} {[%emt 00:00:06]} Bg7
{[%clk 00:14:50]} {[%emt 00:00:04]} 8. O-O {[%clk 00:14:55]} {[%emt 00:00:04]}
O-O {[%clk 00:14:50]} {[%emt 00:00:06]} 9. e4 {[%clk 00:14:42]} {[%emt
00:00:18]} d6 {[%clk 00:14:47]} {[%emt 00:00:08]} 10. Qc2 {[%clk 00:14:30]}
{[%emt 00:00:17]} Nc6 {[%emt 00:02:16]} 11. a3 {[%clk 00:13:48]} {[%emt
00:00:42]} fxe4 {[%clk 00:12:46]} {[%emt 00:00:01]} 12. fxe4 {[%clk 00:13:47]}
{[%emt 00:00:06]} Ng4 {[%clk 00:12:42]} {[%emt 00:00:09]} 13. d5 {[%clk
00:12:51]} {[%emt 00:01:01]} Rxf1+ {[%clk 00:12:15]} {[%emt 00:00:32]} 14. Kxf1
{[%clk 00:12:50]} {[%emt 00:00:05]} Nd4 {[%clk 00:11:59]} {[%emt 00:00:22]} 15.
Nxd4 {[%clk 00:11:52]} {[%emt 00:01:02]} Bxd4 {[%clk 00:12:02]} {[%emt
00:00:02]} 16. h3 {[%clk 00:11:01]} {[%emt 00:00:57]} Qh4 {[%clk 00:11:36]}
{[%emt 00:00:31]} 17. Nd1 {[%clk 00:10:21]} {[%emt 00:00:45]} Rf8+ {[%clk
00:10:31]} {[%emt 00:01:10]} 18. Ke2 {[%clk 00:10:05]} {[%emt 00:00:20]} Ne5
{[%clk 00:06:58]} {[%emt 00:03:38]} 19. Be3 {[%clk 00:08:44]} {[%emt 00:01:26]}
Bxe3 {[%clk 00:06:57]} {[%emt 00:00:06]} 20. Kxe3 {[%clk 00:08:32]} {[%emt
00:00:16]} exd5 {[%clk 00:05:28]} {[%emt 00:01:34]} 21. cxd5 {[%clk 00:08:21]}
{[%emt 00:00:16]} Qg5+ {[%clk 00:05:04]} {[%emt 00:00:29]} 22. Kd4 {[%clk
00:08:02]} {[%emt 00:00:24]} c5+ {[%clk 00:05:02]} {[%emt 00:00:08]} 23. Kc3
{[%clk 00:06:08]} {[%emt 00:01:58]} c4 {[%clk 00:05:06]} {[%emt 00:00:02]} 24.
Be2 {[%clk 00:05:52]} {[%emt 00:00:21]} Qxg2 {[%emt 00:01:47]} 25. Bg4 {[%emt
00:00:31]} Qg3+ {[%emt 00:01:32]} 26. Kb4 {[%emt 00:00:24]} a5+ {[%emt
00:00:44]} 27. Kb5 {[%emt 00:00:39]} Qg1 {[%emt 00:00:36]} 28. b4 {[%emt
00:00:11]} cxb3 {[%clk 00:02:36]} {[%emt 00:00:20]} 29. Be6+ {[%clk 00:02:11]}
{[%emt 00:00:16]} Kh8 {[%clk 00:02:40]} 30. Qxb3 {[%clk 00:01:40]} {[%emt
00:00:36]} Qc5+ {[%clk 00:02:18]} {[%emt 00:00:26]} 31. Ka4 {[%clk 00:01:43]}
{[%emt 00:00:03]} Qd4+ {[%clk 00:02:23]} {[%emt 00:00:01]} 32. Kb5 {[%clk
00:01:39]} {[%emt 00:00:09]} Qxa1 {[%clk 00:01:49]} {[%emt 00:00:43]} 0-1

[Event "SS Manhem Chess Week 2019 Goteborg Open"]
[Site "Molnlycke kulturhus, Biblioteksgatan 2, Molnlycke, Sweden"]
[Date "2019.08.16"]
[Round "1.13"]
[White "Welin, Mats"]
[Black "Johansson-Ohman, Daniel"]
[Result "1-0"]
[TimeControl "15 minutes + 5 seconds per move from move one (Round 1 - 4) / 90 minutes + 30 seconds per move from move one (Round 5 - 8)"]
[WhiteTitle "FM"]
[WhiteFideId "1705180"]
[BlackFideId "1736361"]
[WhiteElo "2310"]
[BlackElo "1822"]

1. e4 {[%clk 01:30:57]} c5 {[%clk 01:30:59]} 2. Nf3 {[%clk 00:15:09]} {[%emt
28:32:19]} d6 {[%clk 00:15:08]} {[%emt 00:00:06]} 3. d4 {[%clk 00:15:12]}
{[%emt 00:00:02]} cxd4 {[%clk 00:15:11]} {[%emt 00:00:02]} 4. Nxd4 {[%clk
00:15:15]} {[%emt 00:00:02]} Nf6 {[%clk 00:15:15]} {[%emt 00:00:01]} 5. Nc3
{[%clk 00:15:19]} {[%emt 00:00:02]} a6 {[%clk 00:15:18]} {[%emt 00:00:01]} 6.
Be2 {[%clk 00:15:21]} {[%emt 00:00:02]} e5 {[%clk 00:15:18]} {[%emt 00:00:05]}
7. Nb3 {[%clk 00:15:25]} {[%emt 00:00:02]} Be6 {[%clk 00:15:22]} {[%emt
00:00:02]} 8. f4 {[%emt 00:00:31]} exf4 {[%clk 00:14:58]} {[%emt 00:00:02]} 9.
Bxf4 {[%clk 00:15:27]} {[%emt 00:00:03]} Be7 {[%clk 00:14:55]} {[%emt
00:00:08]} 10. Qd2 {[%clk 00:15:12]} {[%emt 00:00:20]} Nc6 {[%clk 00:13:24]}
{[%emt 00:01:37]} 11. O-O-O {[%clk 00:15:08]} {[%emt 00:00:09]} Ne5 {[%clk
00:13:06]} {[%emt 00:00:23]} 12. Nd4 {[%clk 00:14:39]} {[%emt 00:00:33]} Qc7
{[%clk 00:11:38]} {[%emt 00:01:33]} 13. Qe3 {[%clk 00:13:50]} {[%emt 00:00:54]}
b5 {[%clk 00:10:50]} {[%emt 00:00:54]} 14. Nf5 {[%clk 00:10:47]} {[%emt
00:03:07]} Bxf5 {[%clk 00:10:29]} {[%emt 00:00:27]} 15. exf5 {[%clk 00:10:50]}
{[%emt 00:00:03]} Rc8 {[%clk 00:09:42]} {[%emt 00:00:53]} 16. a3 {[%clk
00:10:17]} {[%emt 00:00:38]} O-O {[%clk 00:07:20]} {[%emt 00:02:27]} 17. Rhg1
{[%clk 00:07:17]} {[%emt 00:03:04]} Rfd8 {[%clk 00:05:25]} {[%emt 00:02:00]} 18.
g4 {[%clk 00:07:07]} {[%emt 00:00:14]} Nc4 {[%clk 00:04:49]} {[%emt 00:00:42]}
19. Bxc4 {[%clk 00:06:59]} {[%emt 00:00:12]} Qxc4 {[%clk 00:03:57]} {[%emt
00:00:57]} 20. Rd4 {[%clk 00:05:01]} {[%emt 00:02:03]} Qc7 {[%clk 00:03:58]}
{[%emt 00:00:04]} 21. Qe2 {[%clk 00:04:24]} {[%emt 00:00:42]} Qa7 {[%clk
00:02:51]} {[%emt 00:01:13]} 22. Be3 {[%clk 00:04:03]} {[%emt 00:00:26]} Qb7
{[%clk 00:02:40]} {[%emt 00:00:16]} 23. g5 {[%clk 00:04:04]} {[%emt 00:00:04]}
Ne8 {[%clk 00:02:41]} {[%emt 00:00:05]} 24. Nd5 {[%clk 00:03:52]} {[%emt
00:00:17]} Rc5 {[%clk 00:02:02]} {[%emt 00:00:44]} 25. Qg2 {[%clk 00:03:35]}
{[%emt 00:00:21]} Qd7 {[%clk 00:01:19]} {[%emt 00:00:49]} 26. f6 {[%clk
00:03:16]} {[%emt 00:00:23]} Bf8 {[%clk 00:01:17]} {[%emt 00:00:08]} 27. fxg7
{[%clk 00:03:18]} {[%emt 00:00:03]} Bxg7 {[%clk 00:01:20]} {[%emt 00:00:02]} 28.
Nf6+ {[%clk 00:03:17]} {[%emt 00:00:06]} 1-0

[Event "SS Manhem Chess Week 2019 Goteborg Open"]
[Site "Molnlycke kulturhus, Biblioteksgatan 2, Molnlycke, Sweden"]
[Date "2019.08.16"]
[Round "1.14"]
[White "Carlfors, Viktor"]
[Black "Ziegler, Ari"]
[Result "1/2-1/2"]
[TimeControl "15 minutes + 5 seconds per move from move one (Round 1 - 4) / 90 minutes + 30 seconds per move from move one (Round 5 - 8)"]
[BlackTitle "IM"]
[WhiteFideId "1740725"]
[BlackFideId "1700987"]
[WhiteElo "1820"]
[BlackElo "2300"]

1. d4 {[%clk 00:15:07]} {[%emt 00:00:02]} g6 {[%clk 00:15:09]} {[%emt
00:00:03]} 2. Nf3 {[%clk 00:15:02]} {[%emt 00:00:09]} Bg7 {[%clk 00:15:12]}
{[%emt 00:00:02]} 3. Bf4 {[%clk 00:14:42]} {[%emt 00:00:25]} d6 {[%clk
00:15:16]} {[%emt 00:00:02]} 4. Nc3 {[%clk 00:14:44]} {[%emt 00:00:03]} Nd7
{[%clk 00:15:15]} {[%emt 00:00:06]} 5. e4 {[%clk 00:14:29]} {[%emt 00:00:20]}
e5 {[%clk 00:15:06]} {[%emt 00:00:13]} 6. dxe5 {[%clk 00:14:25]} {[%emt
00:00:10]} Nxe5 {[%clk 00:14:54]} {[%emt 00:00:16]} 7. Nxe5 {[%clk 00:14:05]}
{[%emt 00:00:25]} Bxe5 {[%clk 00:14:21]} {[%emt 00:00:38]} 8. Bxe5 {[%clk
00:14:08]} {[%emt 00:00:02]} dxe5 {[%clk 00:14:24]} {[%emt 00:00:02]} 9. Qxd8+
{[%clk 00:14:11]} {[%emt 00:00:02]} Kxd8 {[%clk 00:14:28]} {[%emt 00:00:02]} 10.
O-O-O+ {[%clk 00:14:13]} {[%emt 00:00:03]} Bd7 {[%clk 00:14:05]} {[%emt
00:00:27]} 11. Bc4 {[%clk 00:13:50]} {[%emt 00:00:28]} Nh6 {[%clk 00:13:25]}
{[%emt 00:00:45]} 12. Nd5 {[%clk 00:12:49]} {[%emt 00:01:07]} Kc8 {[%clk
00:12:37]} {[%emt 00:00:52]} 13. Nf6 {[%clk 00:12:27]} {[%emt 00:00:27]} Bc6
{[%clk 00:10:36]} {[%emt 00:02:06]} 14. Rd2 {[%clk 00:11:33]} {[%emt 00:00:59]}
a5 {[%clk 00:08:35]} {[%emt 00:02:06]} 15. f3 {[%clk 00:10:36]} {[%emt
00:01:02]} b5 {[%clk 00:08:15]} {[%emt 00:00:25]} 16. Bd5 {[%clk 00:10:29]}
{[%emt 00:00:12]} Ra6 {[%clk 00:08:17]} {[%emt 00:00:03]} 17. Rhd1 {[%clk
00:10:03]} {[%emt 00:00:31]} Bxd5 {[%clk 00:06:49]} {[%emt 00:01:34]} 18. Nxd5
{[%clk 00:10:05]} {[%emt 00:00:02]} Re8 {[%clk 00:06:22]} {[%emt 00:00:31]} 19.
Ne3 {[%clk 00:09:46]} {[%emt 00:00:25]} Rae6 {[%clk 00:05:57]} {[%emt
00:00:29]} 20. Rd5 {[%clk 00:09:39]} {[%emt 00:00:13]} c6 {[%clk 00:05:58]}
{[%emt 00:00:05]} 21. Rd7 {[%clk 00:09:21]} {[%emt 00:00:21]} R6e7 {[%clk
00:05:53]} {[%emt 00:00:12]} 22. R7d6 {[%clk 00:09:11]} {[%emt 00:00:15]} Re6
{[%clk 00:05:49]} {[%emt 00:00:09]} 23. Rd7 {[%clk 00:09:08]} {[%emt 00:00:08]}
R6e7 {[%clk 00:05:53]} {[%emt 00:00:02]} 24. R7d6 {[%clk 00:09:08]} {[%emt
00:00:04]} Kc7 {[%clk 00:05:57]} {[%emt 00:00:02]} 25. c4 {[%clk 00:08:10]}
{[%emt 00:01:03]} Rb8 {[%clk 00:05:15]} {[%emt 00:00:47]} 26. cxb5 {[%clk
00:07:49]} {[%emt 00:00:25]} Rxb5 {[%clk 00:05:18]} {[%emt 00:00:02]} 27. Rd8
{[%clk 00:07:33]} {[%emt 00:00:21]} f5 {[%clk 00:05:07]} {[%emt 00:00:17]} 28.
Rf8 {[%clk 00:06:24]} {[%emt 00:01:13]} fxe4 {[%clk 00:05:04]} {[%emt
00:00:09]} 29. fxe4 {[%clk 00:04:26]} {[%emt 00:02:03]} Rb4 {[%clk 00:05:04]}
{[%emt 00:00:05]} 30. b3 {[%clk 00:03:34]} {[%emt 00:00:56]} Rxe4 {[%clk
00:05:02]} {[%emt 00:00:08]} 31. Nc4 {[%clk 00:03:36]} {[%emt 00:00:02]} Rd4
{[%clk 00:04:10]} {[%emt 00:00:57]} 32. Nxa5 {[%clk 00:02:44]} {[%emt
00:00:57]} Rxd1+ {[%clk 00:04:03]} {[%emt 00:00:12]} 33. Kxd1 {[%clk 00:02:48]}
{[%emt 00:00:01]} Ng4 {[%clk 00:04:06]} {[%emt 00:00:03]} 34. h3 {[%clk
00:02:41]} {[%emt 00:00:11]} Ne3+ {[%clk 00:04:10]} {[%emt 00:00:02]} 35. Ke2
{[%clk 00:02:30]} {[%emt 00:00:15]} Nxg2 {[%clk 00:04:13]} {[%emt 00:00:02]} 36.
Kf3 {[%clk 00:01:59]} {[%emt 00:00:35]} Nf4 {[%clk 00:03:45]} {[%emt 00:00:33]}
37. h4 {[%clk 00:01:58]} {[%emt 00:00:06]} Nd5 {[%clk 00:03:19]} {[%emt
00:00:32]} 38. Nc4 {[%clk 00:01:48]} {[%emt 00:00:14]} e4+ {[%clk 00:03:20]}
{[%emt 00:00:04]} 39. Ke2 {[%clk 00:01:42]} {[%emt 00:00:09]} e3 {[%clk
00:02:26]} {[%emt 00:01:00]} 40. a4 {[%clk 00:01:36]} {[%emt 00:00:11]} Nc3+
{[%clk 00:02:23]} {[%emt 00:00:08]} 41. Ke1 {[%clk 00:01:34]} {[%emt 00:00:04]}
e2 {[%clk 00:02:01]} {[%emt 00:00:30]} 42. Rf3 {[%clk 00:01:23]} {[%emt
00:00:15]} Na2 {[%clk 00:01:26]} {[%emt 00:00:41]} 43. Re3 {[%clk 00:00:58]}
{[%emt 00:00:30]} Rxe3 44. Nxe3 {[%clk 00:01:02]} Nc1 {[%clk 00:01:32]} {[%emt
00:00:01]} 45. b4 {[%clk 00:01:03]} {[%emt 00:00:04]} Nd3+ {[%clk 00:01:36]}
{[%emt 00:00:01]} 46. Kxe2 {[%clk 00:01:06]} {[%emt 00:00:02]} Nxb4 {[%clk
00:01:40]} {[%emt 00:00:01]} 47. Kf3 {[%clk 00:00:59]} {[%emt 00:00:12]} Nd5
{[%clk 00:01:12]} {[%emt 00:00:34]} 48. Nc4 {[%clk 00:00:58]} {[%emt 00:00:06]}
Ne7 {[%clk 00:01:09]} {[%emt 00:00:08]} 49. Kf4 {[%clk 00:00:52]} {[%emt
00:00:10]} h6 {[%clk 00:01:11]} {[%emt 00:00:04]} 50. Ke5 {[%clk 00:00:37]}
{[%emt 00:00:20]} g5 {[%clk 00:00:56]} {[%emt 00:00:20]} 51. hxg5 {[%clk
00:00:38]} {[%emt 00:00:03]} hxg5 {[%clk 00:01:00]} {[%emt 00:00:01]} 52. Ne3
{[%clk 00:00:35]} {[%emt 00:00:08]} Kb6 {[%clk 00:00:54]} {[%emt 00:00:12]} 53.
Ke6 {[%clk 00:00:14]} {[%emt 00:00:26]} Nc8 {[%clk 00:00:28]} {[%emt 00:00:30]}
54. Kf5 {[%clk 00:00:16]} {[%emt 00:00:04]} Ka5 {[%clk 00:00:32]} 55. Kxg5
{[%clk 00:00:19]} {[%emt 00:00:01]} Kxa4 {[%clk 00:00:36]} {[%emt 00:00:01]} 56.
Kf4 {[%clk 00:00:23]} {[%emt 00:00:01]} Kb3 {[%clk 00:00:40]} {[%emt 00:00:01]}
57. Ke4 {[%clk 00:00:22]} {[%emt 00:00:06]} Kc3 {[%clk 00:00:41]} {[%emt
00:00:04]} 58. Nd5+ {[%clk 00:00:19]} {[%emt 00:00:07]} Kc4 {[%clk 00:00:36]}
{[%emt 00:00:11]} 59. Ne3+ {[%clk 00:00:23]} Kc5 {[%clk 00:00:38]} {[%emt
00:00:03]} 60. Kd3 {[%clk 00:00:26]} {[%emt 00:00:02]} Nb6 {[%clk 00:00:39]}
{[%emt 00:00:05]} 61. Kc2 {[%clk 00:00:22]} {[%emt 00:00:08]} Kd4 {[%clk
00:00:36]} {[%emt 00:00:09]} 62. Nd1 {[%clk 00:00:24]} {[%emt 00:00:03]} c5
{[%clk 00:00:37]} {[%emt 00:00:04]} 63. Nb2 {[%clk 00:00:28]} {[%emt 00:00:01]}
Nd5 {[%clk 00:00:36]} {[%emt 00:00:07]} 64. Na4 {[%clk 00:00:29]} {[%emt
00:00:04]} c4 {[%clk 00:00:38]} {[%emt 00:00:03]} 65. Nb2 {[%clk 00:00:33]}
Ne3+ {[%clk 00:00:34]} {[%emt 00:00:09]} 66. Kc1 {[%clk 00:00:33]} {[%emt
00:00:05]} c3 {[%clk 00:00:36]} {[%emt 00:00:03]} 67. Na4 {[%clk 00:00:26]}
{[%emt 00:00:12]} c2 {[%clk 00:00:38]} {[%emt 00:00:04]} 68. Nb2 {[%clk
00:00:19]} {[%emt 00:00:12]} Kc3 {[%clk 00:00:39]} {[%emt 00:00:04]} 69. Na4+
{[%clk 00:00:23]} {[%emt 00:00:01]} Kc4 {[%clk 00:00:38]} {[%emt 00:00:07]} 70.
Nb6+ {[%clk 00:00:25]} {[%emt 00:00:03]} Kb3 {[%clk 00:00:39]} {[%emt
00:00:04]} 71. Nd7 {[%clk 00:00:12]} {[%emt 00:00:18]} Kc4 {[%clk 00:00:24]}
{[%emt 00:00:20]} 72. Ne5+ {[%clk 00:00:08]} {[%emt 00:00:09]} Kd4 {[%clk
00:00:26]} {[%emt 00:00:02]} 73. Nf3+ {[%clk 00:00:11]} {[%emt 00:00:02]} Kc3
{[%clk 00:00:30]} {[%emt 00:00:01]} 74. Ne1 {[%clk 00:00:14]} {[%emt 00:00:02]}
1/2-1/2

[Event "SS Manhem Chess Week 2019 Goteborg Open"]
[Site "Molnlycke kulturhus, Biblioteksgatan 2, Molnlycke, Sweden"]
[Date "2019.08.16"]
[Round "1.15"]
[White "Petersson, Baldur Teodor"]
[Black "Tenold, Andreas"]
[Result "1-0"]
[TimeControl "15 minutes + 5 seconds per move from move one (Round 1 - 4) / 90 minutes + 30 seconds per move from move one (Round 5 - 8)"]
[WhiteTitle "CM"]
[WhiteFideId "2309157"]
[BlackFideId "1525840"]
[WhiteElo "2255"]
[BlackElo "1795"]

1. e4 {[%clk 00:15:08]} {[%emt 00:00:02]} c5 {[%clk 00:15:09]} {[%emt
00:00:01]} 2. Nf3 {[%clk 00:15:11]} {[%emt 00:00:03]} e6 {[%clk 00:15:12]} 3.
d3 {[%clk 00:15:15]} {[%emt 00:00:02]} Nc6 {[%clk 00:15:14]} {[%emt 00:00:03]}
4. Nbd2 {[%clk 00:15:15]} {[%emt 00:00:04]} d5 {[%clk 00:15:05]} {[%emt
00:00:14]} 5. g3 {[%clk 00:15:17]} {[%emt 00:00:05]} Bd6 {[%clk 00:15:03]}
{[%emt 00:00:07]} 6. Bg2 {[%clk 00:15:20]} {[%emt 00:00:02]} Nge7 {[%clk
00:15:06]} {[%emt 00:00:01]} 7. O-O {[%clk 00:15:23]} {[%emt 00:00:03]} O-O
{[%clk 00:15:06]} {[%emt 00:00:04]} 8. Re1 {[%clk 00:15:27]} {[%emt 00:00:01]}
Qc7 {[%clk 00:14:14]} {[%emt 00:00:58]} 9. Qe2 {[%emt 00:00:24]} f6 {[%clk
00:13:45]} {[%emt 00:00:11]} 10. c3 {[%clk 00:15:31]} {[%emt 00:00:03]} d4
{[%clk 00:13:24]} {[%emt 00:00:26]} 11. Nc4 {[%clk 00:15:24]} {[%emt 00:00:12]}
e5 {[%clk 00:13:19]} {[%emt 00:00:10]} 12. a4 {[%clk 00:15:28]} {[%emt
00:00:01]} Be6 {[%clk 00:13:17]} {[%emt 00:00:07]} 13. Na3 {[%clk 00:15:31]}
{[%emt 00:00:02]} a6 {[%clk 00:11:26]} {[%emt 00:01:56]} 14. Bd2 {[%clk
00:15:33]} {[%emt 00:00:03]} Rab8 {[%clk 00:11:08]} {[%emt 00:00:23]} 15. c4
{[%emt 00:01:01]} b6 {[%clk 00:10:47]} {[%emt 00:00:06]} 16. h4 {[%emt
00:01:07]} Bg4 {[%clk 00:08:59]} {[%emt 00:01:08]} 17. Qf1 {[%clk 00:14:39]}
{[%emt 00:00:08]} Qd7 {[%clk 00:08:12]} {[%emt 00:00:52]} 18. Nh2 {[%clk
00:14:36]} {[%emt 00:00:07]} Be6 {[%clk 00:07:53]} {[%emt 00:00:24]} 19. f4
{[%emt 00:00:34]} f5 {[%clk 00:07:25]} {[%emt 00:00:06]} 20. Qe2 {[%clk
00:14:06]} {[%emt 00:00:33]} exf4 {[%clk 00:05:37]} {[%emt 00:01:53]} 21. gxf4
{[%clk 00:13:17]} {[%emt 00:00:54]} fxe4 {[%clk 00:04:50]} {[%emt 00:00:52]} 22.
Qxe4 {[%clk 00:13:21]} {[%emt 00:00:01]} Bf5 {[%clk 00:04:33]} {[%emt
00:00:22]} 23. Qf3 {[%clk 00:13:24]} {[%emt 00:00:02]} Nd8 {[%clk 00:03:08]}
{[%emt 00:01:30]} 24. Re2 {[%clk 00:13:06]} {[%emt 00:00:24]} Ne6 {[%clk
00:03:04]} {[%emt 00:00:09]} 25. Rae1 {[%clk 00:12:43]} {[%emt 00:00:27]} Ng6
{[%clk 00:02:59]} {[%emt 00:00:10]} 26. Qd5 {[%clk 00:12:14]} {[%emt 00:00:35]}
Rbe8 {[%clk 00:02:32]} {[%emt 00:00:32]} 27. Nf3 {[%clk 00:12:03]} {[%emt
00:00:16]} Ne7 {[%clk 00:00:53]} {[%emt 00:01:44]} 28. Ne5 {[%clk 00:11:59]}
{[%emt 00:00:09]} Qc7 {[%clk 00:00:58]} 29. Qb7 {[%clk 00:10:53]} {[%emt
00:01:12]} Qxb7 {[%clk 00:00:39]} {[%emt 00:00:24]} 30. Bxb7 {[%clk 00:10:56]}
{[%emt 00:00:02]} Bxe5 {[%clk 00:00:30]} {[%emt 00:00:13]} 31. Rxe5 {[%clk
00:10:59]} {[%emt 00:00:02]} Ng6 {[%clk 00:00:31]} {[%emt 00:00:04]} 32. R5e2
{[%clk 00:10:11]} {[%emt 00:00:53]} Nc7 {[%clk 00:00:30]} {[%emt 00:00:06]} 33.
Rxe8 {[%clk 00:09:27]} {[%emt 00:00:50]} Rxe8 {[%clk 00:00:34]} 34. Rxe8+
{[%clk 00:09:31]} Nxe8 {[%clk 00:00:38]} {[%emt 00:00:02]} 35. Bxa6 {[%clk
00:09:34]} {[%emt 00:00:02]} Nxh4 {[%clk 00:00:34]} {[%emt 00:00:07]} 36. Kf2
{[%clk 00:09:15]} {[%emt 00:00:24]} Bxd3 {[%clk 00:00:37]} {[%emt 00:00:01]} 37.
b4 {[%clk 00:09:17]} {[%emt 00:00:04]} Nc7 {[%clk 00:00:21]} {[%emt 00:00:22]}
38. Bc8 {[%clk 00:08:45]} {[%emt 00:00:37]} Nf5 {[%clk 00:00:15]} {[%emt
00:00:11]} 39. a5 {[%clk 00:08:12]} {[%emt 00:00:39]} bxa5 {[%clk 00:00:06]}
{[%emt 00:00:15]} 40. b5 {[%clk 00:07:49]} {[%emt 00:00:28]} Na8 {[%clk
00:00:08]} {[%emt 00:00:03]} 41. Bb7 {[%clk 00:07:23]} {[%emt 00:00:31]} Nb6
{[%clk 00:00:07]} {[%emt 00:00:05]} 42. Bxa5 {[%clk 00:07:26]} {[%emt
00:00:02]} Nxc4 {[%clk 00:00:11]} {[%emt 00:00:01]} 43. Bd5+ {[%clk 00:07:30]}
{[%emt 00:00:02]} Kf8 {[%clk 00:00:11]} {[%emt 00:00:05]} 44. Bxc4 {[%clk
00:07:16]} {[%emt 00:00:19]} Be4 {[%emt 00:00:05]} 45. Bb6 {[%clk 00:07:08]}
{[%emt 00:00:11]} 1-0